[Event "*** SCC Grand Prix: Titled Tuesday Blitz"]
[Site "Chess.com"]
[Date "2020.07.07"]
[Round "4"]
[White "talman67"]
[Black "alfiefischer77"]
[Result "1-0"]
[WhiteElo "2486"]
[BlackElo "2308"]
[TimeControl "180+1"]
[EndTime "10:39:50 PDT"]
[Termination "talman67 won by resignation"]

1. e4 {[%clk 0:03:00.9]} 1... c5 {[%clk 0:02:59.8]} 2. Nf3 {[%clk 0:02:57.8]}
2... e6 {[%clk 0:02:59.6]} 3. d4 {[%clk 0:02:58.1]} 3... cxd4 {[%clk 0:03:00.5]}
4. Nxd4 {[%clk 0:02:58.9]} 4... a6 {[%clk 0:03:00.9]} 5. Bd3 {[%clk 0:02:58.6]}
5... Nf6 {[%clk 0:03:00.2]} 6. O-O {[%clk 0:02:58]} 6... Qc7 {[%clk 0:02:59.7]}
7. Qe2 {[%clk 0:02:55.9]} 7... d6 {[%clk 0:02:59.9]} 8. c4 {[%clk 0:02:41.8]}
8... g6 {[%clk 0:02:58.9]} 9. Nc3 {[%clk 0:02:41.4]} 9... Bg7 {[%clk 0:02:59]}
10. Be3 {[%clk 0:02:42.1]} 10... O-O {[%clk 0:02:57.9]} 11. f3 {[%clk
0:02:42.4]} 11... b6 {[%clk 0:02:52.1]} 12. Rac1 {[%clk 0:02:39.4]} 12... Nbd7
{[%clk 0:02:51.9]} 13. Rfd1 {[%clk 0:02:39.2]} 13... Bb7 {[%clk 0:02:51.7]} 14.
Qf2 {[%clk 0:02:38.2]} 14... Rac8 {[%clk 0:02:45.9]} 15. Bf1 {[%clk 0:02:36.9]}
15... Rfe8 {[%clk 0:02:34.2]} 16. b4 {[%clk 0:02:35.5]} 16... Qb8 {[%clk
0:02:21.8]} 17. Nb3 {[%clk 0:02:34.2]} 17... Ba8 {[%clk 0:02:13.3]} 18. c5
{[%clk 0:02:20.6]} 18... bxc5 {[%clk 0:01:49.3]} 19. Bxa6 {[%clk 0:02:18.9]}
19... Bb7 {[%clk 0:01:27]} 20. Bxb7 {[%clk 0:02:12.4]} 20... Qxb7 {[%clk
0:01:27.2]} 21. bxc5 {[%clk 0:02:11.7]} 21... dxc5 {[%clk 0:01:15.9]} 22. Na5
{[%clk 0:02:10.7]} 22... Qa6 {[%clk 0:01:06.5]} 23. Nb3 {[%clk 0:02:09.7]} 23...
c4 {[%clk 0:01:01.7]} 24. Nc5 {[%clk 0:02:04.5]} 24... Nxc5 {[%clk 0:00:57.4]}
25. Bxc5 {[%clk 0:02:05.4]} 25... Red8 {[%clk 0:00:41.6]} 26. Bd4 {[%clk
0:01:57.4]} 26... Qa5 {[%clk 0:00:20.5]} 27. Qe3 {[%clk 0:01:30.2]} 27... Qh5
{[%clk 0:00:17.5]} 28. h3 {[%clk 0:01:24]} 28... Bh6 {[%clk 0:00:17.1]} 29. f4
{[%clk 0:01:24.2]} 29... Bg7 {[%clk 0:00:17.2]} 30. g4 {[%clk 0:01:17.7]} 30...
Nxg4 {[%clk 0:00:11.1]} 31. hxg4 {[%clk 0:01:18.6]} 31... Qxg4+ {[%clk 0:00:11]}
32. Kf2 {[%clk 0:01:14.1]} 32... Bxd4 {[%clk 0:00:09.8]} 33. Rxd4 {[%clk
0:01:15]} 33... Rxd4 {[%clk 0:00:09.4]} 34. Qxd4 {[%clk 0:01:15.9]} 34... Qxf4+
{[%clk 0:00:09.5]} 35. Ke2 {[%clk 0:01:14.5]} 35... Qxc1 {[%clk 0:00:09.9]} 36.
a4 {[%clk 0:01:12.7]} 36... Qb2+ {[%clk 0:00:09]} 37. Kf3 {[%clk 0:01:12.2]}
37... Qb3 {[%clk 0:00:09.2]} 38. a5 {[%clk 0:01:09.7]} 38... Ra8 {[%clk
0:00:08.4]} 39. Kf4 {[%clk 0:01:08.7]} 39... Rxa5 {[%clk 0:00:05.6]} 40. Qd8+
{[%clk 0:01:08.2]} 40... Kg7 {[%clk 0:00:05.6]} 41. Qxa5 {[%clk 0:01:09.1]}
41... Qc2 {[%clk 0:00:05.1]} 42. Qe5+ {[%clk 0:01:07.9]} 42... Kg8 {[%clk
0:00:05]} 43. Qd4 {[%clk 0:01:05]} 43... Qh2+ {[%clk 0:00:04.5]} 44. Kg5 {[%clk
0:01:02.8]} 44... Qg3+ {[%clk 0:00:04.3]} 45. Kf6 {[%clk 0:01:02.5]} 45... Qf4+
{[%clk 0:00:04.2]} 46. Ke7 {[%clk 0:01:01.9]} 46... Qc7+ {[%clk 0:00:04.7]} 47.
Qd7 {[%clk 0:00:57.3]} 47... Qc5+ {[%clk 0:00:04.3]} 48. Ke8 {[%clk 0:00:57.3]}
48... Qe5 {[%clk 0:00:03.1]} 49. Qxf7+ {[%clk 0:00:56.3]} 1-0

[Event "*** SCC Grand Prix: Titled Tuesday Blitz"]
[Site "Chess.com"]
[Date "2020.07.07"]
[Round "4"]
[White "SiddharthGMJagadeesh"]
[Black "The_Machine04"]
[Result "1-0"]
[WhiteElo "2449"]
[BlackElo "2278"]
[TimeControl "180+1"]
[EndTime "10:39:50 PDT"]
[Termination "SiddharthGMJagadeesh won by checkmate"]

1. d4 {[%clk 0:03:00.9]} 1... d6 {[%clk 0:02:59.4]} 2. Nc3 {[%clk 0:02:59.5]}
2... e5 {[%clk 0:02:53.5]} 3. dxe5 {[%clk 0:02:58.8]} 3... dxe5 {[%clk
0:02:54.4]} 4. Qxd8+ {[%clk 0:02:59.1]} 4... Kxd8 {[%clk 0:02:50.9]} 5. Nf3
{[%clk 0:02:58]} 5... f6 {[%clk 0:02:38.4]} 6. Be3 {[%clk 0:02:51.6]} 6... Be6
{[%clk 0:02:32.4]} 7. O-O-O+ {[%clk 0:02:51.2]} 7... Nd7 {[%clk 0:02:32.2]} 8.
g3 {[%clk 0:02:43.7]} 8... c6 {[%clk 0:02:28.4]} 9. Bg2 {[%clk 0:02:43]} 9...
Ne7 {[%clk 0:02:19.9]} 10. Bc5 {[%clk 0:02:36]} 10... Nd5 {[%clk 0:02:03.9]} 11.
Bxf8 {[%clk 0:02:33.4]} 11... Rxf8 {[%clk 0:02:04.8]} 12. Ne4 {[%clk 0:02:31.2]}
12... Ke7 {[%clk 0:01:59.3]} 13. Nfd2 {[%clk 0:02:27.6]} 13... Rfd8 {[%clk
0:01:47.6]} 14. Nb3 {[%clk 0:02:26.8]} 14... b6 {[%clk 0:01:35.5]} 15. Rd2
{[%clk 0:02:20.9]} 15... Rac8 {[%clk 0:01:31.4]} 16. Rhd1 {[%clk 0:02:20.1]}
16... h6 {[%clk 0:01:24.8]} 17. c4 {[%clk 0:01:44]} 17... Nb4 {[%clk 0:01:13.3]}
18. Nd6 {[%clk 0:01:43.5]} 18... Rc7 {[%clk 0:01:06.5]} 19. a3 {[%clk
0:01:39.1]} 19... Na6 {[%clk 0:01:05.4]} 20. f4 {[%clk 0:01:23.6]} 20... Rb8
{[%clk 0:00:49.4]} 21. Kb1 {[%clk 0:01:08.9]} 21... Nac5 {[%clk 0:00:40.8]} 22.
Nc1 {[%clk 0:01:04.9]} 22... a5 {[%clk 0:00:28.8]} 23. f5 {[%clk 0:00:36.1]}
23... Bg8 {[%clk 0:00:27.8]} 24. e3 {[%clk 0:00:24.5]} 24... a4 {[%clk
0:00:22.6]} 25. g4 {[%clk 0:00:24.1]} 25... Nb7 {[%clk 0:00:15]} 26. Nxb7 {[%clk
0:00:23.6]} 26... Rbxb7 {[%clk 0:00:15.9]} 27. Nd3 {[%clk 0:00:20.2]} 27... Ra7
{[%clk 0:00:13.7]} 28. Nb4 {[%clk 0:00:19.8]} 28... Nb8 {[%clk 0:00:10.5]} 29.
Rd8 {[%clk 0:00:19.7]} 29... Rd7 {[%clk 0:00:09.9]} 30. R1xd7+ {[%clk
0:00:19.6]} 30... Nxd7 {[%clk 0:00:06.1]} 31. Nxc6+ {[%clk 0:00:19.4]} 31... Kf7
{[%clk 0:00:04.9]} 32. Nxa7 {[%clk 0:00:19.6]} 32... Ke7 {[%clk 0:00:03.2]} 33.
Nc6+ {[%clk 0:00:19.3]} 33... Kf7 {[%clk 0:00:03]} 34. Bd5# {[%clk 0:00:19.7]}
1-0

[Event "*** SCC Grand Prix: Titled Tuesday Blitz"]
[Site "Chess.com"]
[Date "2020.07.07"]
[Round "4"]
[White "shineatchess"]
[Black "biaf13"]
[Result "0-1"]
[WhiteElo "2156"]
[BlackElo "1958"]
[TimeControl "180+1"]
[EndTime "10:39:50 PDT"]
[Termination "biaf13 won by checkmate"]

1. d4 {[%clk 0:03:00.9]} 1... Nf6 {[%clk 0:02:57.4]} 2. c4 {[%clk 0:03:00.4]}
2... g6 {[%clk 0:02:57]} 3. Nc3 {[%clk 0:02:59.9]} 3... d5 {[%clk 0:02:57.3]} 4.
cxd5 {[%clk 0:02:58.4]} 4... Nxd5 {[%clk 0:02:58.2]} 5. e4 {[%clk 0:02:58.8]}
5... Nxc3 {[%clk 0:02:58.8]} 6. bxc3 {[%clk 0:02:59.6]} 6... Bg7 {[%clk
0:02:58.3]} 7. Bc4 {[%clk 0:03:00.1]} 7... c5 {[%clk 0:02:55.6]} 8. Ne2 {[%clk
0:03:00.2]} 8... Nc6 {[%clk 0:02:55.6]} 9. Be3 {[%clk 0:02:59.7]} 9... O-O
{[%clk 0:02:52.7]} 10. O-O {[%clk 0:02:56.7]} 10... b6 {[%clk 0:02:50.6]} 11.
Rc1 {[%clk 0:02:32.9]} 11... Bb7 {[%clk 0:02:03.2]} 12. d5 {[%clk 0:02:24.6]}
12... Na5 {[%clk 0:01:50.6]} 13. Bd3 {[%clk 0:02:23.9]} 13... Qd7 {[%clk
0:01:41.8]} 14. c4 {[%clk 0:02:22.9]} 14... a6 {[%clk 0:01:37.1]} 15. f4 {[%clk
0:02:18.7]} 15... Rac8 {[%clk 0:01:36.8]} 16. Kh1 {[%clk 0:02:01]} 16... Rfd8
{[%clk 0:01:35.1]} 17. Rb1 {[%clk 0:01:39.4]} 17... b5 {[%clk 0:01:23.7]} 18.
cxb5 {[%clk 0:01:31.2]} 18... c4 {[%clk 0:01:22.6]} 19. Bc2 {[%clk 0:01:31.3]}
19... axb5 {[%clk 0:01:21.1]} 20. Bb6 {[%clk 0:01:31.2]} 20... Ra8 {[%clk
0:01:11.3]} 21. Bxd8 {[%clk 0:01:18.8]} 21... Rc8 {[%clk 0:01:09.3]} 22. Nd4
{[%clk 0:01:17.3]} 22... Rxd8 {[%clk 0:01:08.3]} 23. Nxb5 {[%clk 0:00:42.2]}
23... c3 {[%clk 0:00:55.5]} 24. Nd4 {[%clk 0:00:38.9]} 24... Nc4 {[%clk
0:00:54]} 25. Rf2 {[%clk 0:00:27]} 25... Nb2 {[%clk 0:00:46]} 26. Ba4 {[%clk
0:00:25]} 26... Nxd1 {[%clk 0:00:42.8]} 27. Bxd7 {[%clk 0:00:24.7]} 27... Nxf2+
{[%clk 0:00:43.3]} 28. Kg1 {[%clk 0:00:25.2]} 28... Nxe4 {[%clk 0:00:38.5]} 29.
Rxb7 {[%clk 0:00:21.7]} 29... Bxd4+ {[%clk 0:00:37.7]} 30. Kf1 {[%clk
0:00:20.6]} 30... c2 {[%clk 0:00:33.8]} 31. Rc7 {[%clk 0:00:20.6]} 31... Bc3
{[%clk 0:00:25.2]} 32. Ke2 {[%clk 0:00:14.9]} 32... c1=Q {[%clk 0:00:24.8]} 33.
Kd3 {[%clk 0:00:14.6]} 33... Qd2+ {[%clk 0:00:24.4]} 34. Kxe4 {[%clk 0:00:13.9]}
34... Qe2# {[%clk 0:00:21.4]} 0-1

[Event "*** SCC Grand Prix: Titled Tuesday Blitz"]
[Site "Chess.com"]
[Date "2020.07.07"]
[Round "4"]
[White "ShapkinAnatoliy"]
[Black "aa175"]
[Result "1-0"]
[WhiteElo "2597"]
[BlackElo "2356"]
[TimeControl "180+1"]
[EndTime "10:39:51 PDT"]
[Termination "ShapkinAnatoliy won on time"]

1. d4 {[%clk 0:03:00.9]} 1... e5 {[%clk 0:02:58.4]} 2. dxe5 {[%clk 0:03:00.3]}
2... Nc6 {[%clk 0:02:58.9]} 3. Nf3 {[%clk 0:02:59.8]} 3... Qe7 {[%clk
0:02:54.3]} 4. Bf4 {[%clk 0:02:59.7]} 4... Qb4+ {[%clk 0:02:53.8]} 5. Bd2 {[%clk
0:02:59.7]} 5... Qxb2 {[%clk 0:02:54.2]} 6. Nc3 {[%clk 0:02:59.6]} 6... Bb4
{[%clk 0:02:54.3]} 7. Rb1 {[%clk 0:02:57.7]} 7... Qxc3 {[%clk 0:02:52.5]} 8.
Bxc3 {[%clk 0:02:57.4]} 8... Bxc3+ {[%clk 0:02:53.4]} 9. Nd2 {[%clk 0:02:57.6]}
9... Nxe5 {[%clk 0:02:54]} 10. e3 {[%clk 0:02:57.5]} 10... Nf6 {[%clk
0:02:53.4]} 11. Bd3 {[%clk 0:02:45.8]} 11... O-O {[%clk 0:02:52]} 12. O-O {[%clk
0:02:45.1]} 12... d6 {[%clk 0:02:51.2]} 13. f4 {[%clk 0:02:22.4]} 13... Neg4
{[%clk 0:02:37]} 14. Qe2 {[%clk 0:02:17]} 14... Re8 {[%clk 0:02:30.9]} 15. e4
{[%clk 0:02:11.1]} 15... Bd4+ {[%clk 0:02:21.1]} 16. Kh1 {[%clk 0:02:08.5]}
16... Nd5 {[%clk 0:02:13.4]} 17. Rbe1 {[%clk 0:01:34.6]} 17... Nde3 {[%clk
0:01:52.5]} 18. Rf3 {[%clk 0:01:25.7]} 18... Re6 {[%clk 0:01:22.9]} 19. h3
{[%clk 0:00:42.2]} 19... Rh6 {[%clk 0:00:38.9]} 20. Nb3 {[%clk 0:00:37.5]} 20...
Bc3 {[%clk 0:00:04.2]} 21. Rxe3 {[%clk 0:00:34.8]} 21... Nxe3 {[%clk 0:00:03.6]}
22. Qxe3 {[%clk 0:00:35.3]} 22... Bxe1 {[%clk 0:00:04.5]} 23. Qxe1 {[%clk
0:00:36.2]} 23... Be6 {[%clk 0:00:03.6]} 24. f5 {[%clk 0:00:26.9]} 24... Bxb3
{[%clk 0:00:02.9]} 25. axb3 {[%clk 0:00:27.8]} 25... Re8 {[%clk 0:00:02.4]} 26.
Qa5 {[%clk 0:00:25]} 26... b6 {[%clk 0:00:01.5]} 27. Qxa7 {[%clk 0:00:24.6]}
27... d5 {[%clk 0:00:01.8]} 28. exd5 {[%clk 0:00:22.2]} 28... Rd6 {[%clk
0:00:01.7]} 29. Bb5 {[%clk 0:00:18.2]} 29... Re1+ {[%clk 0:00:01.3]} 30. Kh2
{[%clk 0:00:17.8]} 30... h6 {[%clk 0:00:01.5]} 31. c4 {[%clk 0:00:16.8]} 31...
c5 {[%clk 0:00:01.2]} 32. Qb8+ {[%clk 0:00:14.1]} 1-0

[Event "*** SCC Grand Prix: Titled Tuesday Blitz"]
[Site "Chess.com"]
[Date "2020.07.07"]
[Round "4"]
[White "tamarozi99"]
[Black "inegrepus"]
[Result "0-1"]
[WhiteElo "1975"]
[BlackElo "2187"]
[TimeControl "180+1"]
[EndTime "10:39:51 PDT"]
[Termination "inegrepus won by resignation"]

1. e4 {[%clk 0:03:00.9]} 1... e5 {[%clk 0:02:58.9]} 2. Nf3 {[%clk 0:03:00.1]}
2... Nc6 {[%clk 0:02:59.1]} 3. Bb5 {[%clk 0:02:59.7]} 3... f5 {[%clk 0:02:58.8]}
4. d3 {[%clk 0:02:55.8]} 4... fxe4 {[%clk 0:02:58.5]} 5. dxe4 {[%clk 0:02:55.4]}
5... Nf6 {[%clk 0:02:58.9]} 6. Qd3 {[%clk 0:02:51.7]} 6... Bc5 {[%clk
0:02:57.2]} 7. Nc3 {[%clk 0:02:30.2]} 7... d6 {[%clk 0:02:55.1]} 8. Qc4 {[%clk
0:02:03]} 8... Bd7 {[%clk 0:02:50.2]} 9. Bg5 {[%clk 0:01:57.5]} 9... h6 {[%clk
0:02:44.6]} 10. Bxf6 {[%clk 0:01:30.5]} 10... Qxf6 {[%clk 0:02:44.2]} 11. Nd5
{[%clk 0:01:30.6]} 11... Qd8 {[%clk 0:02:34.3]} 12. Bxc6 {[%clk 0:01:16.6]}
12... bxc6 {[%clk 0:02:34.1]} 13. Ne3 {[%clk 0:01:10.5]} 13... Bxe3 {[%clk
0:02:26.9]} 14. fxe3 {[%clk 0:01:11.4]} 14... Qe7 {[%clk 0:02:23.9]} 15. O-O
{[%clk 0:01:06.7]} 15... Qe6 {[%clk 0:02:22.1]} 16. Qxe6+ {[%clk 0:00:50.6]}
16... Bxe6 {[%clk 0:02:22.1]} 17. Nh4 {[%clk 0:00:50.7]} 17... g5 {[%clk
0:02:04.9]} 18. Nf5 {[%clk 0:00:48.9]} 18... Kd7 {[%clk 0:02:00.9]} 19. b3
{[%clk 0:00:46.3]} 19... Raf8 {[%clk 0:02:00.4]} 20. c4 {[%clk 0:00:45.1]} 20...
c5 {[%clk 0:01:56.3]} 21. Rad1 {[%clk 0:00:36.2]} 21... Rf6 {[%clk 0:01:50.4]}
22. Ng3 {[%clk 0:00:25.7]} 22... Rhf8 {[%clk 0:01:49]} 23. Rxf6 {[%clk
0:00:24.4]} 23... Rxf6 {[%clk 0:01:49.9]} 24. Rf1 {[%clk 0:00:24.4]} 24... Ke7
{[%clk 0:01:47.8]} 25. Rxf6 {[%clk 0:00:20.1]} 25... Kxf6 {[%clk 0:01:47.9]} 26.
Kf2 {[%clk 0:00:20.2]} 26... c6 {[%clk 0:01:45.2]} 27. h3 {[%clk 0:00:19]} 27...
d5 {[%clk 0:01:44.3]} 28. exd5 {[%clk 0:00:17.5]} 28... cxd5 {[%clk 0:01:44.3]}
29. cxd5 {[%clk 0:00:17.5]} 29... Bxd5 {[%clk 0:01:45.2]} 30. Nh5+ {[%clk
0:00:16.2]} 30... Ke7 {[%clk 0:01:41.4]} 31. g4 {[%clk 0:00:14.2]} 31... c4
{[%clk 0:01:38.5]} 32. bxc4 {[%clk 0:00:12.4]} 32... Bxc4 {[%clk 0:01:39.4]} 33.
a3 {[%clk 0:00:12.6]} 33... Kd6 {[%clk 0:01:38.7]} 34. Ng7 {[%clk 0:00:11.4]}
34... Bd3 {[%clk 0:01:35.2]} 35. Ke1 {[%clk 0:00:09.1]} 35... Kc5 {[%clk
0:01:33.9]} 36. Kd2 {[%clk 0:00:09.2]} 36... Bg6 {[%clk 0:01:33.5]} 37. Nf5
{[%clk 0:00:06.6]} 37... h5 {[%clk 0:01:33.4]} 38. Ng3 {[%clk 0:00:05.4]} 38...
hxg4 {[%clk 0:01:30.3]} 39. hxg4 {[%clk 0:00:06.3]} 39... Kc4 {[%clk 0:01:29.5]}
40. Ne2 {[%clk 0:00:06.1]} 40... Kb3 {[%clk 0:01:28.8]} 41. Nc3 {[%clk
0:00:05.5]} 41... a5 {[%clk 0:01:26.8]} 42. Nd5 {[%clk 0:00:04.5]} 42... Kxa3
{[%clk 0:01:24.7]} 43. Ne7 {[%clk 0:00:04.8]} 43... Be4 {[%clk 0:01:24]} 44. Nf5
{[%clk 0:00:03.3]} 44... Kb2 {[%clk 0:01:20.5]} 45. Ng3 {[%clk 0:00:03.3]} 45...
Bg6 {[%clk 0:01:19.8]} 46. Ne2 {[%clk 0:00:03.6]} 46... a4 {[%clk 0:01:19.6]}
47. Nc3 {[%clk 0:00:03.1]} 47... a3 {[%clk 0:01:19.6]} 48. e4 {[%clk 0:00:03.3]}
48... a2 {[%clk 0:01:18.9]} 49. Nxa2 {[%clk 0:00:02.5]} 49... Kxa2 {[%clk
0:01:19.2]} 50. Ke3 {[%clk 0:00:02.8]} 50... Kb3 {[%clk 0:01:19.6]} 51. Kd3
{[%clk 0:00:03.2]} 51... Kb4 {[%clk 0:01:17.8]} 52. Ke3 {[%clk 0:00:03.2]} 52...
Kc3 {[%clk 0:01:18.1]} 0-1

[Event "*** SCC Grand Prix: Titled Tuesday Blitz"]
[Site "Chess.com"]
[Date "2020.07.07"]
[Round "4"]
[White "Shubinkirill2003"]
[Black "Bodnar_Mykola"]
[Result "1-0"]
[WhiteElo "2621"]
[BlackElo "2449"]
[TimeControl "180+1"]
[EndTime "10:39:53 PDT"]
[Termination "Shubinkirill2003 won by resignation"]

1. e4 {[%clk 0:03:00.9]} 1... e5 {[%clk 0:02:59.9]} 2. Nf3 {[%clk 0:02:59.9]}
2... Nc6 {[%clk 0:03:00.3]} 3. Bb5 {[%clk 0:02:59.4]} 3... g6 {[%clk 0:02:59.7]}
4. c3 {[%clk 0:02:57.7]} 4... a6 {[%clk 0:02:59.3]} 5. Ba4 {[%clk 0:02:57.4]}
5... b5 {[%clk 0:02:59.3]} 6. Bb3 {[%clk 0:02:56.6]} 6... Bg7 {[%clk 0:02:52.2]}
7. d4 {[%clk 0:02:55.8]} 7... exd4 {[%clk 0:02:45.5]} 8. cxd4 {[%clk 0:02:56.7]}
8... Nge7 {[%clk 0:02:45.5]} 9. Nc3 {[%clk 0:02:53]} 9... O-O {[%clk 0:02:40.3]}
10. O-O {[%clk 0:02:46]} 10... d6 {[%clk 0:02:39.8]} 11. h3 {[%clk 0:02:42.5]}
11... Na5 {[%clk 0:02:39.6]} 12. Be3 {[%clk 0:02:42.3]} 12... Nxb3 {[%clk
0:02:36.4]} 13. axb3 {[%clk 0:02:43.2]} 13... Bb7 {[%clk 0:02:24.8]} 14. b4
{[%clk 0:02:40.8]} 14... h6 {[%clk 0:02:18.2]} 15. d5 {[%clk 0:02:28.1]} 15...
Kh7 {[%clk 0:02:13.5]} 16. Bd4 {[%clk 0:02:27.1]} 16... f5 {[%clk 0:01:35.2]}
17. Bxg7 {[%clk 0:02:22.6]} 17... Kxg7 {[%clk 0:01:36.1]} 18. Nd4 {[%clk
0:02:19]} 18... Bc8 {[%clk 0:01:35]} 19. Re1 {[%clk 0:02:10.9]} 19... fxe4
{[%clk 0:01:26.8]} 20. Rxe4 {[%clk 0:02:08.3]} 20... Nf5 {[%clk 0:01:26]} 21.
Ne6+ {[%clk 0:02:04.4]} 21... Bxe6 {[%clk 0:01:24.2]} 22. dxe6 {[%clk
0:02:05.3]} 22... c6 {[%clk 0:01:05.1]} 23. g4 {[%clk 0:02:01.1]} 23... Qg5
{[%clk 0:01:04.8]} 24. f4 {[%clk 0:01:34.8]} 24... Qh4 {[%clk 0:01:00.6]} 25.
gxf5 {[%clk 0:01:32.4]} 25... Qg3+ {[%clk 0:00:57.8]} 26. Kf1 {[%clk 0:01:30.9]}
26... Qxh3+ {[%clk 0:00:40.8]} 27. Ke2 {[%clk 0:01:29.1]} 27... Qg2+ {[%clk
0:00:39]} 28. Ke3 {[%clk 0:01:06.8]} 28... d5 {[%clk 0:00:21.4]} 29. Qg1 {[%clk
0:00:32.7]} 29... Qxg1+ {[%clk 0:00:20.1]} 30. Rxg1 {[%clk 0:00:31.9]} 30...
dxe4 {[%clk 0:00:20.7]} 31. Rxg6+ {[%clk 0:00:31.3]} 31... Kh7 {[%clk
0:00:20.2]} 32. e7 {[%clk 0:00:22.7]} 32... Rf7 {[%clk 0:00:19.3]} 33. Re6
{[%clk 0:00:21.4]} 33... Re8 {[%clk 0:00:19.2]} 34. f6 {[%clk 0:00:21.5]} 34...
Kg6 {[%clk 0:00:17.8]} 35. Nxe4 {[%clk 0:00:21.5]} 35... Kf5 {[%clk 0:00:08.9]}
36. Re5+ {[%clk 0:00:21.2]} 36... Kg6 {[%clk 0:00:09]} 37. Nd6 {[%clk
0:00:20.6]} 1-0

[Event "*** SCC Grand Prix: Titled Tuesday Blitz"]
[Site "Chess.com"]
[Date "2020.07.07"]
[Round "4"]
[White "Semen_Khanin"]
[Black "Aguiar94"]
[Result "1-0"]
[WhiteElo "2709"]
[BlackElo "2517"]
[TimeControl "180+1"]
[EndTime "10:39:54 PDT"]
[Termination "Semen_Khanin won on time"]

1. e4 {[%clk 0:03:00.9]} 1... c5 {[%clk 0:02:59.5]} 2. Nf3 {[%clk 0:03:00.9]}
2... e6 {[%clk 0:02:59.7]} 3. d4 {[%clk 0:03:01.2]} 3... cxd4 {[%clk 0:03:00.6]}
4. Nxd4 {[%clk 0:03:02.1]} 4... Nc6 {[%clk 0:03:01.1]} 5. Nc3 {[%clk 0:03:01.9]}
5... Qc7 {[%clk 0:03:01.4]} 6. Be3 {[%clk 0:03:01.4]} 6... a6 {[%clk 0:03:01.7]}
7. Qf3 {[%clk 0:03:01.3]} 7... Nf6 {[%clk 0:03:02.1]} 8. O-O-O {[%clk
0:03:00.6]} 8... Nxd4 {[%clk 0:03:02.4]} 9. Bxd4 {[%clk 0:02:59.9]} 9... e5
{[%clk 0:03:02.8]} 10. Be3 {[%clk 0:02:50.5]} 10... d6 {[%clk 0:03:03.2]} 11. h3
{[%clk 0:02:48]} 11... h6 {[%clk 0:02:56.6]} 12. Qg3 {[%clk 0:02:38.2]} 12...
Be6 {[%clk 0:02:55.3]} 13. f4 {[%clk 0:02:35]} 13... Rc8 {[%clk 0:02:29.9]} 14.
Bd3 {[%clk 0:02:34.8]} 14... b5 {[%clk 0:02:22.4]} 15. f5 {[%clk 0:02:14]} 15...
b4 {[%clk 0:02:09.5]} 16. fxe6 {[%clk 0:02:11.2]} 16... bxc3 {[%clk 0:02:09.1]}
17. exf7+ {[%clk 0:02:08.6]} 17... Kxf7 {[%clk 0:01:51.3]} 18. b3 {[%clk
0:02:08.8]} 18... Qa5 {[%clk 0:00:49.7]} 19. Kb1 {[%clk 0:02:08.3]} 19... Be7
{[%clk 0:00:31.6]} 20. Rhf1 {[%clk 0:02:04.4]} 20... Rc6 {[%clk 0:00:31.8]} 21.
Bc1 {[%clk 0:01:57]} 21... Rb8 {[%clk 0:00:31.8]} 22. Qf2 {[%clk 0:01:44.2]}
22... Rb4 {[%clk 0:00:30.9]} 23. g4 {[%clk 0:01:36.5]} 23... Ra4 {[%clk
0:00:29.7]} 24. bxa4 {[%clk 0:01:27.8]} 24... Qxa4 {[%clk 0:00:18.7]} 25. Ka1
{[%clk 0:01:18.5]} 25... Rc5 {[%clk 0:00:17.7]} 26. Qe2 {[%clk 0:01:10.5]} 26...
Kf8 {[%clk 0:00:13.9]} 27. Be3 {[%clk 0:00:59.5]} 27... Qa3 {[%clk 0:00:11.7]}
28. Rb1 {[%clk 0:00:57.7]} 28... Ra5 {[%clk 0:00:11.7]} 29. Bc4 {[%clk
0:00:56.1]} 29... d5 {[%clk 0:00:10.4]} 30. exd5 {[%clk 0:00:54.8]} 30... Ke8
{[%clk 0:00:09.2]} 31. Qd3 {[%clk 0:00:43.8]} 31... Qa4 {[%clk 0:00:06]} 32.
Qxc3 {[%clk 0:00:36.1]} 32... e4 {[%clk 0:00:04.2]} 33. Bb3 {[%clk 0:00:34.1]}
33... Qa3 {[%clk 0:00:02.6]} 34. Qc8+ {[%clk 0:00:31.1]} 34... Bd8 {[%clk
0:00:03]} 35. d6 {[%clk 0:00:27.9]} 1-0

[Event "*** SCC Grand Prix: Titled Tuesday Blitz"]
[Site "Chess.com"]
[Date "2020.07.07"]
[Round "4"]
[White "profofchess"]
[Black "mfwagnerpeixoto"]
[Result "1-0"]
[WhiteElo "2466"]
[BlackElo "2220"]
[TimeControl "180+1"]
[EndTime "10:39:55 PDT"]
[Termination "profofchess won on time"]

1. e4 {[%clk 0:03:00.9]} 1... c5 {[%clk 0:02:59.2]} 2. Nf3 {[%clk 0:03:00.5]}
2... Nc6 {[%clk 0:02:57.1]} 3. Bb5 {[%clk 0:02:58.2]} 3... e6 {[%clk 0:02:52.3]}
4. O-O {[%clk 0:02:55.3]} 4... Nge7 {[%clk 0:02:51]} 5. c3 {[%clk 0:02:55.5]}
5... a6 {[%clk 0:02:49.4]} 6. Ba4 {[%clk 0:02:54.3]} 6... d5 {[%clk 0:02:46.7]}
7. e5 {[%clk 0:02:41]} 7... b5 {[%clk 0:02:40.5]} 8. Bc2 {[%clk 0:02:40.7]} 8...
d4 {[%clk 0:02:40.7]} 9. Be4 {[%clk 0:02:38.1]} 9... Bb7 {[%clk 0:02:33]} 10.
Re1 {[%clk 0:02:34.7]} 10... Rb8 {[%clk 0:02:32.7]} 11. a4 {[%clk 0:02:25.5]}
11... Qc7 {[%clk 0:02:24.9]} 12. axb5 {[%clk 0:02:17.6]} 12... axb5 {[%clk
0:02:25.8]} 13. Na3 {[%clk 0:02:16.9]} 13... Bc8 {[%clk 0:01:39.6]} 14. Nc2
{[%clk 0:02:02.8]} 14... Ng6 {[%clk 0:01:23.3]} 15. cxd4 {[%clk 0:01:39.9]}
15... Nxd4 {[%clk 0:00:56.8]} 16. Ncxd4 {[%clk 0:01:33.5]} 16... cxd4 {[%clk
0:00:57.7]} 17. b3 {[%clk 0:01:19.6]} 17... Bd7 {[%clk 0:00:46.1]} 18. Bb2
{[%clk 0:01:14.7]} 18... Bc5 {[%clk 0:00:38]} 19. Rc1 {[%clk 0:00:54.8]} 19...
Qb6 {[%clk 0:00:35.9]} 20. Qc2 {[%clk 0:00:41.7]} 20... Rc8 {[%clk 0:00:27.9]}
21. b4 {[%clk 0:00:38.5]} 21... Bxb4 {[%clk 0:00:26.7]} 22. Qb1 {[%clk
0:00:25.7]} 22... Rxc1 {[%clk 0:00:17.6]} 23. Rxc1 {[%clk 0:00:26.6]} 23... Bc5
{[%clk 0:00:16.9]} 24. h4 {[%clk 0:00:26.4]} 24... h6 {[%clk 0:00:09.8]} 25.
Bxg6 {[%clk 0:00:20.4]} 25... fxg6 {[%clk 0:00:08.8]} 26. Qxg6+ {[%clk
0:00:21.3]} 26... Kf8 {[%clk 0:00:09.4]} 27. d3 {[%clk 0:00:09.4]} 27... Be8
{[%clk 0:00:07.8]} 28. Qg3 {[%clk 0:00:08.3]} 28... Bf7 {[%clk 0:00:06]} 29. Nd2
{[%clk 0:00:08.4]} 29... Bb4 {[%clk 0:00:02.6]} 30. Ne4 {[%clk 0:00:08.3]} 1-0